[Event "Championnat du monde jeunes U12"]
[Date "2024.11.23"]
[White "Dauren, Darmen"]
[Black "Skytte, Robert"]
[WhiteElo "1820"]
[BlackElo "1925"]
[Round "8.40"]
[Result "1/2-1/2"]
[TimeControl "5400+30"]

1. d4 {[%clk 1:30:58]} 1... d5 {[%clk 1:30:54]} 2. Bg5 {[%clk 1:31:17]} 2... c5
{[%clk 1:31:13]} 3. dxc5 {[%clk 1:31:23]} 3... h6 {[%clk 1:31:39]} 4. Bh4 {[%clk
1:31:36]} 4... g5 {[%clk 1:32:05]} 5. Bg3 {[%clk 1:31:59]} 5... Bg7 {[%clk
1:32:27]} 6. c3 {[%clk 1:32:23]} 6... Nf6 {[%clk 1:32:52]} 7. Nf3 {[%clk
1:28:25]} 7... Nbd7 {[%clk 1:32:10]} 8. e3 {[%clk 1:21:38]} 8... Nxc5 {[%clk
1:32:33]} 9. Nbd2 {[%clk 1:18:29]} 9... Bf5 {[%clk 1:31:18]} 10. Bb5+ {[%clk
1:15:14]} 10... Bd7 {[%clk 1:31:03]} 11. Be2 {[%clk 1:15:02]} 11... O-O {[%clk
1:29:55]} 12. Be5 {[%clk 1:13:40]} 12... Bf5 {[%clk 1:27:20]} 13. Nb3 {[%clk
1:08:20]} 13... Nxb3 {[%clk 1:27:40]} 14. Qxb3 {[%clk 1:08:42]} 14... Qb6 {[%clk
1:27:17]} 15. Qxb6 {[%clk 1:07:54]} 15... axb6 {[%clk 1:27:43]} 16. a3 {[%clk
1:07:01]} 16... Nd7 {[%clk 1:27:39]} 17. Bxg7 {[%clk 1:07:10]} 17... Kxg7 {[%clk
1:28:01]} 18. Rd1 {[%clk 1:07:33]} 18... e6 {[%clk 1:27:30]} 19. h4 {[%clk
1:05:02]} 19... gxh4 {[%clk 1:26:41]} 20. Rxh4 {[%clk 1:05:13]} 20... Nc5 {[%clk
1:26:34]} 21. Rb4 {[%clk 1:04:48]} 21... Nd7 {[%clk 1:23:29]} 22. Bd3 {[%clk
0:55:23]} 22... Bxd3 {[%clk 1:23:04]} 23. Rxd3 {[%clk 0:55:48]} 23... Ra6 {[%clk
1:22:34]} 24. Rdd4 {[%clk 0:55:01]} 24... Nb8 {[%clk 1:22:40]} 25. Rh4 {[%clk
0:55:15]} 25... Rh8 {[%clk 1:22:52]} 26. Rh5 {[%clk 0:47:45]} 26... Nc6 {[%clk
1:21:34]} 27. Rg4+ {[%clk 0:48:08]} 27... Kf6 {[%clk 1:21:25]} 28. Rgh4 {[%clk
0:44:23]} 28... Kg6 {[%clk 1:21:23]} 29. Ne5+ {[%clk 0:39:43]} 29... Nxe5 {[%clk
1:21:47]} 30. Rxe5 {[%clk 0:40:10]} 30... Kf6 {[%clk 1:21:42]} 31. Reh5 {[%clk
0:40:35]} 31... Kg6 {[%clk 1:22:07]} 32. Rh3 {[%clk 0:40:23]} 32... Ra4 {[%clk
1:22:22]} 33. R5h4 {[%clk 0:40:43]} 33... Rxh4 {[%clk 1:22:42]} 34. Rxh4 {[%clk
0:41:10]} 34... Rc8 {[%clk 1:23:07]} 35. Rb4 {[%clk 0:41:23]} 35... Rc6 {[%clk
1:23:31]} 36. Kd2 {[%clk 0:40:37]} 36... e5 {[%clk 1:22:13]} 37. Kd3 {[%clk
0:40:40]} 37... f5 {[%clk 1:22:34]} 38. Rb5 {[%clk 0:40:24]} 38... Rd6 {[%clk
1:22:58]} 39. Rb4 {[%clk 0:38:32]} 39... Kg5 {[%clk 1:22:51]} 40. Ra4 {[%clk
0:37:39]} 40... Rd8 {[%clk 1:23:15]} 41. Ke2 {[%clk 0:37:41]} 41... e4 {[%clk
1:23:18]} 42. Rd4 {[%clk 0:35:54]} 42... Kf6 {[%clk 1:23:40]} 43. c4 {[%clk
0:34:48]} 43... Ke5 {[%clk 1:24:06]} 44. Kd2 {[%clk 0:35:00]} 44... h5 {[%clk
1:24:00]} 45. Ke2 {[%clk 0:30:20]} 45... Rd6 {[%clk 1:23:44]} 46. f4+ {[%clk
0:29:09]} 46... Ke6 {[%clk 1:23:54]} 47. Rxd5 {[%clk 0:24:28]} 47... Rxd5 {[%clk
1:24:20]} 48. cxd5+ {[%clk 0:24:54]} 48... Kxd5 {[%clk 1:24:46]} 49. b3 {[%clk
0:25:18]} 49... b5 {[%clk 1:24:15]} 50. Kf2 {[%clk 0:25:30]} 50... Ke6 {[%clk
1:24:37]} 51. Kg3 {[%clk 0:25:10]} 51... Kf6 {[%clk 1:25:01]} 52. Kh4 {[%clk
0:25:37]} 52... Kg6 {[%clk 1:25:26]} 53. g3 {[%clk 0:25:55]} 53... Kh6 {[%clk
1:25:51]} 54. Kh3 {[%clk 0:26:22]} 54... Kg6 {[%clk 1:26:15]} 55. Kg2 {[%clk
0:26:45]} 55... Kf6 {[%clk 1:26:31]} 56. Kf2 {[%clk 0:27:12]} 56... Ke6 {[%clk
1:26:56]} 57. Ke2 {[%clk 0:27:38]} 57... Kd5 {[%clk 1:27:04]} 58. Kf1 {[%clk
0:26:33]} 58... Ke6 {[%clk 1:27:13]} 59. Ke1 {[%clk 0:26:57]} 59... Kd5 {[%clk
1:27:14]} 60. Kd2 {[%clk 0:27:22]} 60... Kc5 {[%clk 1:27:34]} 61. Kc2 {[%clk
0:26:51]} 61... Kd5 {[%clk 1:27:33]} 62. Kc3 {[%clk 0:26:59]} 62... Kc5 {[%clk
1:27:58]} 63. a4 {[%clk 0:26:23]} 63... b4+ {[%clk 1:28:21]} 64. Kd2 {[%clk
0:26:50]} 64... Kd5 {[%clk 1:28:37]} 65. a5 {[%clk 0:27:06]} 65... Ke6 {[%clk
1:29:01]} 66. Ke2 {[%clk 0:27:33]} 66... Kf6 {[%clk 1:29:27]} 67. Kf2 {[%clk
0:28:01]} 67... Kg6 {[%clk 1:29:54]} 68. Kg2 {[%clk 0:28:27]} 68... Kh6 {[%clk
1:30:21]} 69. Kh2 {[%clk 0:28:51]} 69... Kg6 {[%clk 1:30:47]} 70. Kh3 {[%clk
0:29:18]} 70... Kh6 {[%clk 1:31:12]} 71. Kh4 {[%clk 0:29:42]} 71... Kg6 {[%clk
1:31:39]} 1/2-1/2

[Variant "Standard"]
[Site "Europe Echecs"]

[Event "Championnat du monde jeunes U12"]
[Date "2024.11.23"]
[White "Tona, Leonardo"]
[Black "Farzaleev, Daniyar"]
[WhiteElo "1906"]
[BlackElo "1622"]
[Round "8.41"]
[Result "1/2-1/2"]
[TimeControl "5400+30"]

1. d4 {[%clk 1:30:58]} 1... Nf6 {[%clk 1:30:56]} 2. c4 {[%clk 1:31:21]} 2... c5
{[%clk 1:31:24]} 3. d5 {[%clk 1:31:14]} 3... b5 {[%clk 1:31:51]} 4. cxb5 {[%clk
1:31:36]} 4... a6 {[%clk 1:32:19]} 5. bxa6 {[%clk 1:31:57]} 5... g6 {[%clk
1:32:46]} 6. Nc3 {[%clk 1:32:19]} 6... Bg7 {[%clk 1:33:11]} 7. e4 {[%clk
1:32:40]} 7... O-O {[%clk 1:33:35]} 8. Be3 {[%clk 1:32:39]} 8... d6 {[%clk
1:33:40]} 9. Bb5 {[%clk 1:32:06]} 9... Bxa6 {[%clk 1:33:23]} 10. Bxa6 {[%clk
1:32:15]} 10... Nxa6 {[%clk 1:33:46]} 11. Nge2 Qb6 {[%clk 1:33:17]} 12. Qd2
{[%clk 1:31:18]} 12... Rfb8 {[%clk 1:31:58]} 13. Rb1 {[%clk 1:29:58]} 13... Qb4
{[%clk 1:26:52]} 14. a3 {[%clk 1:27:42]} 14... Qa5 {[%clk 1:24:52]} 15. O-O
{[%clk 1:24:18]} 15... Nc7 {[%clk 1:23:37]} 16. a4 {[%clk 1:21:30]} 16... Rb4
{[%clk 1:21:44]} 17. Qc2 {[%clk 1:21:24]} 17... Qb6 {[%clk 1:17:49]} 18. Nc1
{[%clk 1:19:33]} 18... Qb8 {[%clk 1:13:52]} 19. Nd3 {[%clk 1:17:53]} 19... Rb7
{[%clk 1:14:14]} 20. f3 {[%clk 1:14:36]} 20... Nd7 {[%clk 1:11:53]} 21. b3
{[%clk 1:13:18]} 21... Ne5 {[%clk 1:11:43]} 22. Nxe5 {[%clk 0:53:19]} 22... Bxe5
{[%clk 1:12:09]} 23. Bd2 {[%clk 0:53:36]} 23... Ra6 {[%clk 1:11:33]} 24. Ne2
{[%clk 0:52:10]} 24... Bg7 {[%clk 1:04:43]} 25. Kh1 {[%clk 0:47:46]} 25... Rab6
{[%clk 0:59:47]} 26. Ba5 {[%clk 0:47:34]} 26... Ra6 {[%clk 0:59:11]} 27. Bd2
{[%clk 0:46:45]} 27... Rab6 {[%clk 0:59:36]} 28. Nc1 {[%clk 0:46:55]} 28... Ra7
{[%clk 0:56:51]} 29. b4 {[%clk 0:45:13]} 29... Na6 {[%clk 0:51:11]} 30. b5
{[%clk 0:44:27]} 30... Nc7 {[%clk 0:51:36]} 31. Qc4 {[%clk 0:43:07]} 31... Qa8
{[%clk 0:45:09]} 32. a5 {[%clk 0:42:59]} 32... Rxa5 {[%clk 0:45:37]} 33. Bxa5
{[%clk 0:43:23]} 33... Qxa5 {[%clk 0:46:05]} 34. Nb3 Qa2 {[%clk 0:41:40]} 35.
Qd3 {[%clk 0:41:05]} 35... Rxb5 {[%clk 0:40:58]} 36. Nd2 {[%clk 0:40:07]} 36...
Rxb1 {[%clk 0:39:22]} 37. Qxb1 {[%clk 0:38:59]} 37... Qxd2 {[%clk 0:37:19]} 38.
Qb8+ {[%clk 0:39:21]} 38... Bf8 {[%clk 0:37:46]} 39. Qxc7 {[%clk 0:39:45]} 39...
h6 {[%clk 0:37:22]} 40. Qb8 {[%clk 0:39:10]} 40... Qe2 {[%clk 0:37:25]} 41. Qb1
{[%clk 0:39:31]} 41... Bg7 {[%clk 0:37:44]} 42. Re1 {[%clk 0:39:43]} 42... Qc4
{[%clk 0:37:51]} 43. Qc1 {[%clk 0:39:29]} 43... Qb4 {[%clk 0:37:58]} 44. Qb1
{[%clk 0:39:50]} 44... Qc4 {[%clk 0:38:23]} 45. Rc1 {[%clk 0:39:51]} 45... Qd4
{[%clk 0:38:12]} 46. Qb3 {[%clk 0:39:18]} 46... Kh7 {[%clk 0:37:43]} 47. Qc4
{[%clk 0:38:48]} 47... Qb2 {[%clk 0:37:32]} 48. f4 {[%clk 0:38:26]} 48... Qd2
{[%clk 0:34:54]} 49. Rf1 {[%clk 0:36:06]} 49... Bd4 {[%clk 0:33:41]} 50. e5
{[%clk 0:34:02]} 50... Kg7 {[%clk 0:33:23]} 51. exd6 {[%clk 0:30:44]} 51... exd6
{[%clk 0:33:51]} 52. Qa6 {[%clk 0:30:53]} 52... Qe3 {[%clk 0:33:26]} 53. Qxd6
{[%clk 0:30:27]} 53... Qd3 {[%clk 0:33:24]} 54. Rc1 {[%clk 0:29:36]} 54... Bb2
{[%clk 0:33:40]} 55. Re1 {[%clk 0:26:13]} 55... Bc3 {[%clk 0:34:02]} 56. Rg1
{[%clk 0:25:35]} 56... Bd4 {[%clk 0:34:28]} 57. Qe7 {[%clk 0:21:29]} 57... Bxg1
{[%clk 0:34:45]} 58. Qe5+ {[%clk 0:21:49]} 58... Kh7 {[%clk 0:31:32]} 59. Kxg1
{[%clk 0:21:32]} 59... c4 {[%clk 0:31:37]} 1/2-1/2

[Variant "Standard"]
[Site "Europe Echecs"]

[Event "Championnat du monde jeunes U12"]
[Date "2024.11.23"]
[White "Liu, Richard Jingjie"]
[Black "Vinales Gonzalez, Enzo Mathias"]
[WhiteElo "1795"]
[BlackElo "1903"]
[Round "8.42"]
[Result "0-1"]
[TimeControl "5400+30"]

1. e4 {[%clk 1:30:57]} 1... c5 {[%clk 1:30:22]} 2. Nf3 {[%clk 1:31:23]} 2... d6
{[%clk 1:30:49]} 3. Bb5+ {[%clk 1:31:50]} 3... Bd7 {[%clk 1:31:09]} 4. Bxd7+
{[%clk 1:32:13]} 4... Qxd7 {[%clk 1:31:37]} 5. c4 {[%clk 1:32:37]} 5... e5
{[%clk 1:31:06]} 6. Nc3 {[%clk 1:32:41]} 6... Ne7 {[%clk 1:30:47]} 7. d3 {[%clk
1:32:59]} 7... Nbc6 {[%clk 1:30:24]} 8. Be3 {[%clk 1:33:13]} 8... g6 9. Nd2
{[%clk 1:32:38]} 9... Bg7 {[%clk 1:30:13]} 10. f3 {[%clk 1:30:05]} 10... h6
{[%clk 1:24:21]} 11. Rc1 {[%clk 1:29:15]} 11... f5 {[%clk 1:20:26]} 12. a3
{[%clk 1:25:02]} 12... O-O {[%clk 1:17:10]} 13. O-O {[%clk 1:24:06]} 13... f4
{[%clk 1:17:25]} 14. Bf2 {[%clk 1:24:33]} 14... g5 {[%clk 1:17:51]} 15. g4
{[%clk 1:06:46]} 15... fxg3 {[%clk 1:12:09]} 16. Bxg3 {[%clk 1:04:56]} 16... Rf7
{[%clk 1:10:02]} 17. Nd5 {[%clk 1:01:09]} 17... Raf8 {[%clk 1:08:22]} 18. Qe2
{[%clk 0:59:57]} 18... Nd4 {[%clk 1:05:36]} 19. Qg2 {[%clk 1:00:20]} 19... Nxd5
{[%clk 1:03:04]} 20. cxd5 {[%clk 1:00:31]} 20... h5 {[%clk 1:02:29]} 21. h3
{[%clk 0:46:26]} 21... g4 {[%clk 1:00:29]} 22. fxg4 {[%clk 0:41:34]} 22... hxg4
{[%clk 1:00:52]} 23. Rxf7 {[%clk 0:41:47]} 23... Rxf7 {[%clk 1:00:57]} 24. hxg4
{[%clk 0:41:47]} 24... Qxg4 {[%clk 1:01:18]} 25. Re1 {[%clk 0:40:38]} 25... Bh6
{[%clk 1:00:15]} 26. Nc4 {[%clk 0:30:59]} 26... Nf3+ {[%clk 0:55:32]} 27. Kh1
{[%clk 0:31:19]} 27... Qh5+ {[%clk 0:54:42]} 28. Bh2+ {[%clk 0:31:48]} 28... Rg7
{[%clk 0:55:01]} 29. Qf2 {[%clk 0:29:52]} 29... Bf4 {[%clk 0:55:17]} 30. Rg1
{[%clk 0:27:43]} 30... Rxg1+ {[%clk 0:55:37]} 31. Qxg1+ Nxg1 32. Kg2 Qxh2+ 33.
Kf1 Bg3 34. b3 Qf2# 0-1

[Variant "Standard"]
[Site "Europe Echecs"]

[Event "Championnat du monde jeunes U12"]
[Date "2024.11.23"]
[White "Nguyen Le Nguyen"]
[Black "Obidov, Biloliddin"]
[WhiteElo "1782"]
[BlackElo "2088"]
[Round "8.43"]
[Result "0-1"]
[TimeControl "5400+30"]

1. e4 {[%clk 1:30:58]} 1... c6 {[%clk 1:30:56]} 2. d4 {[%clk 1:31:25]} 2... d5
{[%clk 1:31:22]} 3. f3 {[%clk 1:31:51]} 3... dxe4 {[%clk 1:31:06]} 4. fxe4
{[%clk 1:32:16]} 4... e5 {[%clk 1:31:31]} 5. Nf3 {[%clk 1:32:42]} 5... exd4
{[%clk 1:31:11]} 6. Bc4 {[%clk 1:33:08]} 6... Be7 {[%clk 1:08:02]} 7. O-O {[%clk
1:33:19]} 7... Nf6 {[%clk 1:08:28]} 8. Ng5 {[%clk 1:32:53]} 8... O-O {[%clk
1:08:18]} 9. Nxf7 {[%clk 1:30:49]} 9... Rxf7 {[%clk 1:08:39]} 10. Bxf7+ {[%clk
1:31:15]} 10... Kxf7 {[%clk 1:09:02]} 11. e5 {[%clk 1:31:42]} 11... Kg8 {[%clk
1:09:17]} 12. exf6 {[%clk 1:32:07]} 12... Bxf6 {[%clk 1:09:45]} 13. Qe2 {[%clk
1:26:58]} 13... Nd7 {[%clk 1:07:57]} 14. Nd2 {[%clk 1:24:53]} 14... Ne5 {[%clk
1:01:39]} 15. Ne4 {[%clk 1:24:53]} 15... Be7 {[%clk 1:01:24]} 16. Qh5 {[%clk
0:58:28]} 16... Ng6 {[%clk 1:00:31]} 17. b3 {[%clk 0:51:30]} 17... Be6 {[%clk
0:59:07]} 18. Bb2 {[%clk 0:50:53]} 18... d3 {[%clk 0:52:43]} 19. Qf3 {[%clk
0:50:20]} 19... Qb6+ {[%clk 0:38:40]} 20. Kh1 {[%clk 0:50:23]} 20... Rd8 {[%clk
0:37:51]} 21. cxd3 {[%clk 0:46:50]} 21... Qa6 {[%clk 0:36:44]} 22. Qf2 {[%clk
0:44:54]} 22... b6 {[%clk 0:30:31]} 23. d4 {[%clk 0:32:56]} 23... Nh4 {[%clk
0:18:55]} 24. d5 {[%clk 0:32:20]} 24... Rxd5 {[%clk 0:15:12]} 25. Qg3 {[%clk
0:32:34]} 25... Ng6 {[%clk 0:14:33]} 26. Qc3 {[%clk 0:31:00]} 26... Ne5 {[%clk
0:09:28]} 27. Rfd1 {[%clk 0:31:07]} 27... Qa5 {[%clk 0:03:41]} 28. Qg3 {[%clk
0:31:07]} 28... Ng6 {[%clk 0:02:56]} 29. Qb8+ {[%clk 0:30:56]} 29... Bf8 {[%clk
0:03:16]} 30. Rf1 {[%clk 0:30:46]} 30... Qb4 {[%clk 0:02:44]} 31. Rae1 {[%clk
0:30:44]} 31... Rf5 {[%clk 0:01:51]} 32. Nc3 {[%clk 0:30:41]} 32... Qh4 {[%clk
0:01:47]} 33. Rg1 {[%clk 0:30:35]} 33... Bf7 {[%clk 0:01:50]} 34. Re4 {[%clk
0:30:38]} 34... Qf2 {[%clk 0:01:52]} 35. Re2 {[%clk 0:30:55]} 35... Qh4 {[%clk
0:01:50]} 36. Re4 {[%clk 0:31:09]} 36... Qf2 {[%clk 0:02:17]} 37. Re2 {[%clk
0:31:10]} 37... Qh4 {[%clk 0:01:26]} 38. Re4 {[%clk 0:31:30]} 38... Nf4 {[%clk
0:00:42]} 39. g3 {[%clk 0:30:57]} 39... Qxh2+ {[%clk 0:01:02]} 40. Kxh2 {[%clk
0:31:18]} 40... Rh5# {[%clk 0:01:31]} 0-1

[Variant "Standard"]
[Site "Europe Echecs"]

[Event "Championnat du monde jeunes U12"]
[Date "2024.11.23"]
[White "Vaidyanathan, Adithya"]
[Black "Wang, William Kaiyuan"]
[WhiteElo "2018"]
[BlackElo "1715"]
[Round "8.44"]
[Result "1-0"]
[TimeControl "5400+30"]

1. d4 {[%clk 1:30:59]} 1... Nf6 {[%clk 1:30:57]} 2. Nf3 {[%clk 1:31:25]} 2... e6
{[%clk 1:31:24]} 3. c4 {[%clk 1:31:52]} 3... b6 {[%clk 1:31:51]} 4. Nc3 {[%clk
1:32:18]} 4... Bb4 {[%clk 1:32:17]} 5. Qb3 {[%clk 1:32:43]} 5... c5 {[%clk
1:32:42]} 6. a3 {[%clk 1:32:59]} 6... Bxc3+ {[%clk 1:33:07]} 7. Qxc3 {[%clk
1:33:27]} 7... d6 {[%clk 1:32:08]} 8. g3 Bb7 {[%clk 1:32:27]} 9. Bg2 {[%clk
1:30:41]} 9... Nbd7 {[%clk 1:31:48]} 10. O-O {[%clk 1:30:43]} 10... O-O {[%clk
1:20:12]} 11. Rd1 {[%clk 1:28:48]} 11... d5 {[%clk 1:13:22]} 12. Ne5 {[%clk
1:19:37]} 12... Rc8 {[%clk 1:07:23]} 13. Nxd7 {[%clk 1:10:51]} 13... Qxd7 {[%clk
1:05:41]} 14. Bg5 {[%clk 1:10:38]} 14... Ne8 {[%clk 0:54:40]} 15. cxd5 {[%clk
1:07:24]} 15... Bxd5 {[%clk 0:53:58]} 16. e4 {[%clk 1:06:20]} 16... Ba8 {[%clk
0:46:49]} 17. dxc5 {[%clk 1:05:51]} 17... Qb5 {[%clk 0:46:49]} 18. Be7 {[%clk
1:05:22]} 18... Nf6 {[%clk 0:40:48]} 19. Bxf8 {[%clk 1:05:24]} 19... Kxf8 {[%clk
0:41:04]} 20. Qb4 {[%clk 1:05:11]} 20... Qxb4 21. axb4 {[%clk 1:05:31]} 21...
bxc5 {[%clk 0:22:09]} 22. bxc5 {[%clk 1:05:42]} 22... Bxe4 {[%clk 0:21:05]} 23.
Rxa7 {[%clk 1:05:32]} 23... Bxg2 {[%clk 0:19:16]} 24. Kxg2 {[%clk 1:06:00]}
24... Nd5 {[%clk 0:19:33]} 25. b4 {[%clk 1:05:31]} 25... Ke8 {[%clk 0:17:02]}
26. Rb1 {[%clk 1:04:27]} 26... Nc3 {[%clk 0:15:40]} 27. Rb3 {[%clk 1:04:36]}
27... Nb5 {[%clk 0:16:00]} 28. Rb7 {[%clk 1:04:40]} 28... Nd4 {[%clk 0:15:08]}
29. Rd3 {[%clk 1:04:59]} 29... Nc6 {[%clk 0:12:17]} 30. Rdd7 {[%clk 1:03:12]}
30... Nd8 {[%clk 0:12:32]} 31. Re7+ {[%clk 1:02:43]} 31... Kf8 {[%clk 0:12:59]}
32. Rec7 {[%clk 1:02:59]} 32... Ra8 {[%clk 0:12:52]} 33. Ra7 {[%clk 1:03:17]}
33... Rb8 {[%clk 0:13:15]} 34. b5 {[%clk 1:03:29]} 34... Ke8 {[%clk 0:13:03]}
35. b6 {[%clk 1:03:19]} 35... g6 {[%clk 0:12:52]} 36. b7 {[%clk 1:03:31]} 36...
h5 {[%clk 0:12:04]} 37. Ra8 {[%clk 1:03:45]} 1-0

[Variant "Standard"]
[Site "Europe Echecs"]

[Event "Championnat du monde jeunes U12"]
[Date "2024.11.23"]
[White "Sason, Noam"]
[Black "Park, Onyoo"]
[WhiteElo "2017"]
[BlackElo "1710"]
[Round "8.45"]
[Result "1-0"]
[TimeControl "5400+30"]

1. e4 {[%clk 1:30:58]} 1... e6 {[%clk 1:28:32]} 2. d3 {[%clk 1:31:17]} 2... d5
{[%clk 1:28:40]} 3. Nd2 {[%clk 1:31:38]} 3... c5 {[%clk 1:28:11]} 4. g3 {[%clk
1:31:58]} 4... g6 {[%clk 1:28:27]} 5. Bg2 {[%clk 1:31:53]} 5... Bg7 {[%clk
1:28:45]} 6. Ngf3 Ne7 {[%clk 1:28:23]} 7. O-O {[%clk 1:32:14]} 7... Nbc6 {[%clk
1:28:25]} 8. c3 {[%clk 1:29:57]} 8... b6 {[%clk 1:27:43]} 9. Re1 {[%clk
1:27:38]} 9... a5 {[%clk 1:22:20]} 10. a4 {[%clk 1:24:55]} 10... Ba6 {[%clk
1:20:21]} 11. Nf1 {[%clk 1:25:05]} 11... dxe4 {[%clk 1:16:34]} 12. dxe4 {[%clk
1:25:24]} 12... Qxd1 {[%clk 1:15:36]} 13. Rxd1 {[%clk 1:25:52]} 13... Rd8 {[%clk
1:08:14]} 14. Bf4 {[%clk 1:22:50]} 14... e5 {[%clk 0:57:23]} 15. Rxd8+ {[%clk
1:18:26]} 15... Kxd8 {[%clk 0:57:34]} 16. Rd1+ {[%clk 1:18:32]} 16... Kc8 {[%clk
0:57:25]} 17. Bc1 {[%clk 1:14:45]} 17... Rd8 {[%clk 0:51:26]} 18. Rxd8+ {[%clk
1:12:33]} 18... Nxd8 {[%clk 0:50:52]} 19. Ne3 {[%clk 1:10:44]} 19... Kd7 {[%clk
0:43:59]} 20. Nd2 {[%clk 1:05:55]} 20... Kc6 {[%clk 0:33:44]} 21. Ndc4 {[%clk
1:03:20]} 21... Nb7 {[%clk 0:29:31]} 22. f4 {[%clk 0:55:23]} 22... f6 {[%clk
0:25:47]} 23. Bf1 {[%clk 0:52:59]} 23... Bxc4 {[%clk 0:25:03]} 24. Nxc4 {[%clk
0:50:14]} 24... Nd6 {[%clk 0:24:43]} 25. Nxd6 {[%clk 0:47:45]} 25... Kxd6 {[%clk
0:24:50]} 26. Kf2 {[%clk 0:46:56]} 26... Nc6 {[%clk 0:21:24]} 27. Bc4 {[%clk
0:45:02]} 27... Ne7 {[%clk 0:16:00]} 28. Kf3 {[%clk 0:44:41]} 28... Kd7 {[%clk
0:11:46]} 29. Be3 {[%clk 0:41:22]} 29... Bh6 {[%clk 0:05:26]} 1-0

[Variant "Standard"]
[Site "Europe Echecs"]

[Event "Championnat du monde jeunes U12"]
[Date "2024.11.23"]
[White "Wang, Luis"]
[Black "Vorobyov, Radmir"]
[WhiteElo "1751"]
[BlackElo "2017"]
[Round "8.46"]
[Result "0-1"]
[TimeControl "5400+30"]

1. e4 {[%clk 1:30:55]} 1... c6 {[%clk 1:30:54]} 2. d4 {[%clk 1:30:39]} 2... d5
{[%clk 1:31:20]} 3. Nc3 {[%clk 1:30:19]} 3... dxe4 {[%clk 1:31:45]} 4. Nxe4
{[%clk 1:30:43]} 4... Nf6 {[%clk 1:32:13]} 5. Ng3 {[%clk 1:30:43]} 5... e6
{[%clk 1:31:51]} 6. Nf3 {[%clk 1:30:28]} 6... Bd6 {[%clk 1:32:12]} 7. Bd3 {[%clk
1:29:29]} 7... h6 {[%clk 1:31:52]} 8. c3 {[%clk 1:29:20]} 8... O-O {[%clk
1:32:14]} 9. O-O {[%clk 1:29:08]} 9... Nbd7 {[%clk 1:32:30]} 10. Qc2 {[%clk
1:28:29]} 10... Qc7 {[%clk 1:28:40]} 11. Re1 {[%clk 1:16:31]} 11... b6 {[%clk
1:28:23]} 12. Ne4 {[%clk 1:14:21]} 12... Bf4 {[%clk 1:15:13]} 13. Nxf6+ {[%clk
1:04:43]} 13... Nxf6 {[%clk 1:15:34]} 14. Ne5 {[%clk 1:04:32]} 14... Bxc1 {[%clk
1:15:02]} 15. Raxc1 {[%clk 1:04:52]} 15... Bb7 {[%clk 1:14:11]} 16. Re3 {[%clk
1:03:46]} 16... c5 {[%clk 1:11:45]} 17. Qd2 {[%clk 0:58:09]} 17... Rfd8 {[%clk
0:40:17]} 18. Rg3 {[%clk 0:50:43]} 18... Kf8 {[%clk 0:40:32]} 19. Qf4 {[%clk
0:45:12]} 19... Rac8 {[%clk 0:37:44]} 20. Rh3 {[%clk 0:23:31]} 20... cxd4 {[%clk
0:29:52]} 21. Rxh6 {[%clk 0:22:37]} 21... Rd5 {[%clk 0:08:57]} 22. Re1 {[%clk
0:16:38]} 22... dxc3 {[%clk 0:06:53]} 23. Rxf6 {[%clk 0:16:30]} 23... gxf6
{[%clk 0:07:15]} 24. Qxf6 {[%clk 0:16:53]} 24... Rxe5 {[%clk 0:06:15]} 25. Rxe5
{[%clk 0:16:46]} 25... c2 {[%clk 0:06:04]} 26. Qh6+ {[%clk 0:11:49]} 26... Ke7
{[%clk 0:04:36]} 27. Qh4+ {[%clk 0:08:51]} 27... f6 {[%clk 0:02:30]} 28. Qb4+
{[%clk 0:04:04]} 28... Qd6 {[%clk 0:02:10]} 29. Rxe6+ {[%clk 0:03:58]} 29...
Kxe6 {[%clk 0:02:33]} 30. Qg4+ {[%clk 0:03:21]} 30... Ke7 {[%clk 0:02:41]} 31.
Qg7+ {[%clk 0:03:34]} 31... Kd8 {[%clk 0:02:57]} 32. Qg8+ {[%clk 0:03:42]} 32...
Kc7 {[%clk 0:03:21]} 33. Bxc2 {[%clk 0:02:59]} 33... Rxg8 {[%clk 0:03:45]} 0-1

[Variant "Standard"]
[Site "Europe Echecs"]

[Event "Championnat du monde jeunes U12"]
[Date "2024.11.23"]
[White "Gazzato, Nicolo`"]
[Black "Andreiev, Andrii"]
[WhiteElo "1868"]
[BlackElo "1704"]
[Round "8.47"]
[Result "1-0"]
[TimeControl "5400+30"]

1. e4 {[%clk 1:30:58]} 1... e5 {[%clk 1:30:52]} 2. Nf3 {[%clk 1:31:22]} 2... Nc6
{[%clk 1:31:03]} 3. Bc4 {[%clk 1:31:50]} 3... Bc5 {[%clk 1:31:07]} 4. c3 {[%clk
1:32:18]} 4... Nf6 {[%clk 1:31:14]} 5. d4 {[%clk 1:32:46]} 5... exd4 {[%clk
1:31:26]} 6. e5 {[%clk 1:33:11]} 6... Ne4 {[%clk 1:29:37]} 7. Bd5 {[%clk
1:32:30]} 7... Nxf2 {[%clk 1:27:50]} 8. Kxf2 dxc3+ {[%clk 1:27:54]} 9. Ke2
{[%clk 1:29:59]} 9... cxb2 {[%clk 1:27:38]} 10. Bxb2 {[%clk 1:29:20]} 10... O-O
{[%clk 1:27:59]} 11. Re1 {[%clk 1:25:26]} 11... b6 {[%clk 1:27:35]} 12. Bc4
{[%clk 1:20:15]} 12... d6 {[%clk 1:20:11]} 13. Kf1 {[%clk 1:16:44]} 13... Bg4
{[%clk 1:17:19]} 14. Bd5 {[%clk 0:51:49]} 14... Bxf3 {[%clk 1:15:53]} 15. Bxf3
{[%clk 0:45:25]} 15... Qh4 {[%clk 1:15:47]} 16. Qd2 {[%clk 0:27:11]} 16... Qxh2
{[%clk 1:13:21]} 17. Bxc6 {[%clk 0:24:54]} 17... Rad8 {[%clk 1:12:33]} 18. e6
{[%clk 0:11:51]} 18... fxe6+ {[%clk 1:12:39]} 19. Bf3 {[%clk 0:12:03]} 19...
Rxf3+ {[%clk 1:12:57]} 20. gxf3 {[%clk 0:12:17]} 20... Qxd2 {[%clk 1:13:15]} 21.
Nxd2 {[%clk 0:12:40]} 21... e5 {[%clk 1:12:35]} 22. Ne4 {[%clk 0:13:03]} 22...
Bb4 {[%clk 1:12:46]} 23. Bc3 {[%clk 0:13:33]} 23... Bc5 {[%clk 1:12:38]} 24.
Nxc5 {[%clk 0:14:00]} 24... bxc5 {[%clk 1:12:41]} 25. Ba5 {[%clk 0:14:19]} 25...
Rd7 {[%clk 1:12:48]} 26. Rab1 {[%clk 0:14:41]} 26... c6 {[%clk 1:12:42]} 27.
Rb8+ {[%clk 0:15:10]} 27... Kf7 28. Reb1 {[%clk 0:15:37]} 28... d5 {[%clk
1:11:39]} 29. R1b7 {[%clk 0:16:06]} 29... Rxb7 {[%clk 1:11:13]} 30. Rxb7+ {[%clk
0:16:36]} 30... Ke6 {[%clk 1:11:30]} 31. Rxg7 {[%clk 0:17:04]} 31... d4 {[%clk
1:11:44]} 32. Rxa7 {[%clk 0:17:27]} 32... c4 {[%clk 1:12:00]} 33. Ke2 {[%clk
0:17:56]} 33... Kd5 {[%clk 1:11:27]} 34. Rxh7 {[%clk 0:18:25]} 34... c5 {[%clk
1:10:26]} 35. Rh1 {[%clk 0:18:54]} 35... c3 {[%clk 1:10:24]} 36. Bxc3 {[%clk
0:19:20]} 1-0

[Variant "Standard"]
[Site "Europe Echecs"]